bitfinex-derivatives/quotes_SOLF0:USTF0_20250816
["timestamp","ask_amount","ask_price","bid_price","bid_amount"]
[1755334986092,2.84,187.91,187.9,3.06]
[1755334986693,4.41070829,187.96,187.87,3.06]
[1755334986891,2.84,187.94,187.87,3.06]
[1755334987090,2.84,187.92,187.87,8.3789]
[1755334987291,2.84,187.92,187.88,3.06]
[1755334988194,2.84,187.92,187.86,11.2165016]
[1755334988584,2.84,187.92,187.87,5.3189]
[1755334988784,2.84,187.92,187.87,8.3789]
[1755334989397,2.84,187.92,187.87,5.3189]
[1755334989593,2.84,187.92,187.88,3.06]
[1755334990099,2.84,187.92,187.85,3.06]
[1755334990304,2.84,187.9,187.83,2.8373016]
[1755334990494,4.24056668,187.89,187.82,3.06]
[1755334990692,2.84,187.87,187.81,87.16558894]
[1755334990992,2.84,187.85,187.8,3.06]
[1755334991192,4.41070829,187.9,187.81,3.06]
[1755334991394,2.84,187.88,187.81,3.06]
[1755334991592,2.84,187.86,187.82,3.06]
[1755334992399,2.84,187.86,187.83,3.06]
[1755334993193,7.24800989,187.91,187.81,8.1579016]
[1755334993194,2.84,187.9,187.81,8.1579016]
[1755334993400,2.84,187.88,187.81,5.8973016]
[1755334993596,2.84,187.86,187.82,3.06]
[1755334993994,2.84,187.86,187.81,2.8373016]
[1755334994198,2.84,187.86,187.81,5.8973016]
[1755334994601,2.84,187.86,187.82,3.06]
[1755334996699,2.84,187.86,187.8,3.06]
[1755334996901,4.23799829,187.85,187.8,3.06]
[1755334997106,2.84,187.84,187.8,3.06]
[1755334998907,2.83,187.89,187.81,3.01]
[1755334999107,2.83,187.87,187.81,3.01]
[1755334999302,2.83,187.85,187.82,3.01]
[1755335000507,2.83,187.85,187.79,133.69]
[1755335000702,2.83,187.85,187.79,130.68]
[1755335000912,2.83,187.85,187.8,3.01]
[1755335001310,2.83,187.85,187.79,130.68]
[1755335001513,2.83,187.85,187.79,133.69]
[1755335002510,2.83,187.85,187.8,3.01]
[1755335003210,2.83,187.85,187.81,3.01]
[1755335005711,7.24800989,187.91,187.79,130.68]
[1755335005915,2.83,187.89,187.81,3.01]
[1755335006111,2.83,187.87,187.81,3.01]
[1755335006304,2.83,187.87,187.81,5.3206]
[1755335006508,2.83,187.87,187.83,3.01]
[1755335007115,2.83,187.87,187.79,133.69]
[1755335007417,2.83,187.85,187.79,133.69]
[1755335007612,2.83,187.85,187.8,3.01]
[1755335008310,2.83,187.85,187.77,130.84]
[1755335008514,2.83,187.85,187.78,3.01]
[1755335008815,2.83,187.85,187.79,3.01]
[1755335010110,2.83,187.85,187.78,5.3214]
[1755335010311,2.83,187.85,187.77,139.1717]
[1755335010707,2.83,187.85,187.79,3.01]
[1755335013211,2.83,187.85,187.77,133.79]
[1755335013714,2.83,187.85,187.78,3.01]
[1755335014116,4.23171689,187.84,187.78,3.01]
[1755335014321,2.83,187.85,187.78,3.01]
[1755335014619,2.83,187.83,187.79,3.01]
[1755335015819,2.83,187.83,187.77,3.01]
[1755335022225,2.83,187.81,187.75,3.01]
[1755335022922,4.30550019,187.8,187.73,101.17846457]
[1755335023118,2.8373016,187.84,187.67,130.64]
[1755335023119,2.83,187.78,187.72,5.3231]
[1755335023323,2.83,187.78,187.73,3.01]
[1755335023819,2.83,187.78,187.74,3.01]
[1755335024222,2.83,187.78,187.75,3.01]
[1755335025323,2.83,187.81,187.72,8.3331]
[1755335025529,2.83,187.79,187.73,3.01]
[1755335025728,2.83,187.77,187.71,135.9634]
[1755335025933,2.83,187.77,187.72,3.01]
[1755335026329,2.83,187.77,187.73,3.01]
[1755335026528,2.83,187.77,187.71,3.01]
[1755335027132,2.83,187.77,187.71,8.3335]
[1755335027431,2.83,187.77,187.73,3.01]
[1755335027831,2.83,187.77,187.71,5.3235]
[1755335028029,2.83,187.77,187.72,3.01]
[1755335028628,2.83,187.77,187.71,5.3235]
[1755335028927,2.83,187.77,187.73,2.88]
[1755335029432,4.41070829,187.83,187.73,2.88]
[1755335029630,3.06,187.79,187.73,2.88]
[1755335029833,3.06,187.79,187.73,8.2028]
[1755335030132,3.06,187.77,187.7,133.4173016]
[1755335030330,3.06,187.77,187.75,2.88]
[1755335030531,3.06,187.76,187.75,2.88]
[1755335031735,3.06,187.76,187.71,5.3233]
[1755335031936,3.06,187.76,187.72,2.88]
[1755335032634,3.06,187.76,187.73,2.88]
[1755335033436,3.06,187.74,187.73,2.88]
[1755335033838,3.06,187.74,187.71,2.88]
[1755335035139,3.06,187.78,187.69,2.88]
[1755335035340,3.06,187.76,187.69,2.88]
[1755335035638,3.06,187.74,187.7,2.88]
[1755335035838,3.06,187.74,187.71,2.88]
[1755335036638,3.06,187.78,187.71,2.88]
[1755335036840,3.06,187.76,187.71,2.88]
[1755335037141,3.06,187.73,187.71,2.88]
[1755335037440,3.06,187.73,187.72,2.88]
[1755335038437,3.06,187.75,187.72,2.88]
[1755335039444,3.06,187.74,187.72,2.88]
[1755335041640,3.06,187.79,187.72,2.88]
[1755335041835,4.41880479,187.83,187.75,2.8373016]
[1755335042040,7.35593668,187.82,187.76,2.88]
[1755335042239,4.41880479,187.86,187.76,2.88]
[1755335042240,7.35593668,187.81,187.76,2.88]
[1755335042438,3.06,187.85,187.79,2.88]
[1755335042640,4.29733116,187.84,187.79,2.88]
[1755335042841,3.06,187.82,187.79,2.88]
[1755335045646,4.41880479,187.88,187.78,133.4573016]
[1755335045948,3.06,187.82,187.81,2.88]
[1755335047445,4.41880479,187.88,187.81,2.88]
[1755335047648,4.41880479,187.88,187.78,133.4573016]
[1755335047649,3.06,187.91,187.84,2.8373016]
[1755335047945,4.31104449,187.9,187.88,2.88]
[1755335048148,3.06,187.95,187.88,2.88]
[1755335048349,3.06,187.92,187.88,2.88]
[1755335049246,3.06,187.94,187.9,2.8373016]
[1755335049449,3.06,187.94,187.92,2.88]
[1755335049743,4.41880479,187.99,187.93,2.88]
[1755335050048,3.06,187.97,187.93,2.88]
[1755335050249,3.06,187.95,187.93,2.88]
[1755335050449,3.06,187.94,187.93,2.88]
[1755335051851,3.06,187.94,187.9,2.88]
[1755335052051,3.06,187.94,187.88,2.88]
[1755335052252,3.06,187.94,187.87,2.8373016]
[1755335052452,3.06,187.94,187.88,2.88]
[1755335058051,3.06,187.94,187.9,2.8373016]
[1755335058250,3.06,187.94,187.91,2.88]
[1755335058448,5.34481695,188.02,187.91,2.88]
[1755335058654,4.27963589,188.01,187.91,2.88]
[1755335058853,2.91,187.99,187.91,2.88]
[1755335059053,4.27963589,187.98,187.91,2.88]
[1755335059256,2.91,187.97,187.91,2.88]
[1755335061054,2.91,187.95,187.88,3.04]
[1755335062254,2.91,187.95,187.91,3.04]
[1755335062650,2.91,187.97,187.91,3.04]
[1755335063451,2.91,187.97,187.93,2.8373016]
[1755335063655,2.91,187.97,187.94,3.04]
[1755335063856,2.91,188.03,187.95,3.04]
[1755335064056,2.91,188.01,187.95,3.04]
[1755335064251,2.91,187.99,187.95,3.04]
[1755335065258,2.91,188.03,187.93,2.8373016]
[1755335065458,4.26994192,188.02,187.94,3.04]
[1755335065654,2.91,188.0,187.96,2.8373016]
[1755335065960,2.91,188.0,187.97,3.04]
[1755335066458,2.91,188.0,187.96,2.8373016]
[1755335066660,2.91,188.0,187.99,3.04]
[1755335067260,2.91,188.07,187.99,3.04]
[1755335067462,2.91,188.05,187.99,5.8773016]
[1755335067661,2.91,188.05,188.0,3.04]
[1755335067959,2.91,188.05,188.01,3.04]
[1755335068555,2.91,188.05,188.02,3.04]
[1755335068755,2.91,188.07,188.02,3.04]
[1755335068962,2.91,188.05,188.02,3.04]
[1755335069762,2.91,188.07,188.02,3.04]
[1755335069962,4.40416165,188.1,188.03,3.04]
[1755335069963,2.91,188.04,188.03,3.04]
[1755335070466,2.91,188.04,187.98,3.04]
[1755335070663,4.40416165,188.09,187.91,505.92409391]
[1755335070664,2.91,188.02,187.95,3.04]
[1755335075067,4.40416165,188.07,187.98,3.04]
[1755335075369,2.91,188.05,188.01,3.04]
[1755335075561,2.91,188.09,188.04,3.04]
[1755335075758,130.72,188.12,188.03,2.8373016]
[1755335075759,2.91,188.07,188.05,3.04]
[1755335075969,2.91,188.07,188.06,3.04]
[1755335076564,2.91,188.11,188.03,5.8773016]
[1755335076760,2.91,188.08,188.04,3.04]
[1755335076973,2.91,188.07,188.04,3.04]
[1755335077172,2.91,188.09,188.04,3.04]
[1755335077468,2.91,188.09,188.08,3.04]
[1755335078661,4.39074787,188.14,188.08,3.04]
[1755335078870,4.2407182,188.13,188.07,3.04]
[1755335079070,2.91,188.11,188.07,3.04]
[1755335079273,4.24067766,188.1,188.07,3.04]
[1755335079472,2.91,188.11,188.07,3.04]
[1755335080270,2.91,188.13,188.08,3.04]
[1755335080471,7.15106404,188.12,188.08,3.04]
[1755335080672,2.91,188.1,188.04,3.04]
[1755335080868,2.91,188.08,188.05,3.04]
[1755335081069,2.91,188.07,188.05,3.04]
[1755335081268,2.91,188.07,188.06,3.04]
[1755335081465,2.91,188.12,188.06,3.04]
[1755335081668,2.91,188.1,188.07,3.04]
[1755335081968,2.91,188.08,188.07,3.04]
[1755335082362,7.15156144,188.08,188.07,3.04]
[1755335083467,2.91,188.12,188.07,3.04]
[1755335083667,2.91,188.12,188.09,2.8373016]
[1755335084071,2.91,188.12,188.11,3.04]
[1755335084867,2.91,188.12,188.09,2.8373016]
[1755335085176,2.91,188.12,188.1,3.04]
[1755335085472,5.94130078,188.16,188.1,3.04]
[1755335085473,4.39074787,188.15,188.1,3.04]
[1755335085669,2.91,188.13,188.11,3.04]
[1755335085870,7.30074787,188.15,188.1,3.04]
[1755335086167,2.91,188.13,188.11,3.04]
[1755335086367,2.91,188.13,188.12,3.04]
[1755335087574,4.39074787,188.14,188.09,8.1498016]
[1755335087766,2.91,188.14,188.13,3.04]
[1755335087966,7.30074787,188.16,188.14,3.04]
[1755335088166,4.39074787,188.16,188.12,5.8773016]
[1755335088368,2.91,188.14,188.13,3.04]
[1755335088562,2.91,188.14,188.12,2.8373016]
[1755335088869,2.89,188.13,188.1,2.83]
[1755335089075,2.89,188.14,188.1,2.83]
[1755335089377,2.89,188.13,188.1,2.83]
[1755335090170,4.39074787,188.14,188.1,2.83]
[1755335090471,2.89,188.13,188.09,5.6673016]
[1755335090672,4.39074787,188.12,188.07,2.83]
[1755335090873,7.28074787,188.11,188.05,2.83]
[1755335091073,2.89,188.09,188.05,2.83]
[1755335091474,2.89,188.09,188.03,2.8373016]
[1755335091670,2.89,188.08,188.07,2.83]
[1755335092274,7.28074787,188.09,188.04,2.83]
[1755335092574,2.89,188.08,188.04,2.83]
[1755335092774,7.28074787,188.08,188.04,2.83]
[1755335093076,2.89,188.06,188.02,2.83]
[1755335093375,2.89,188.06,188.0,2.8373016]
[1755335093376,2.89,188.06,188.01,2.83]
[1755335093575,4.39074787,188.08,188.01,2.83]
[1755335093771,2.89,188.05,188.01,2.83]
[1755335094069,4.39074787,188.08,188.01,2.83]
[1755335094269,2.89,188.04,188.03,0.03867455]
[1755335094468,0.03358417,188.05,188.03,0.03867455]
[1755335094771,2.89,188.1,188.05,5.3134]
[1755335094974,2.89,188.1,188.07,2.8373016]
[1755335095172,2.89,188.1,188.08,2.83]
[1755335095673,4.2197566,188.09,188.08,2.83]
[1755335096976,2.89,188.12,188.08,2.83]
[1755335097170,2.89,188.12,188.09,2.83]
[1755335097875,4.39074787,188.14,188.1,2.83]
[1755335098177,2.89,188.11,188.1,2.83]
[1755335099176,2.89,188.13,188.08,2.83]
[1755335099681,2.89,188.12,188.09,2.83]
[1755335100170,4.39074787,188.15,188.09,2.83]
[1755335100376,2.89,188.14,188.1,2.83]
[1755335100768,2.89,188.14,188.08,2.83]
[1755335101380,2.89,188.13,188.08,2.83]
[1755335103181,2.89,188.13,188.09,2.83]
[1755335103384,4.39074787,188.15,188.08,2.83]
[1755335103582,2.89,188.15,188.08,2.83]
[1755335104681,2.89,188.15,188.09,5.3125]
[1755335104875,2.89,188.15,188.11,2.83]
[1755335105081,2.89,188.16,188.11,5.3117]
[1755335105276,110.35451965,188.19,188.12,2.83]
[1755335105478,110.35451965,188.19,188.11,5.3117]
[1755335105479,2.89,188.14,188.13,2.83]
[1755335106587,2.89,188.18,188.13,2.83]
[1755335107488,2.89,188.18,188.12,5.34518943]
[1755335107881,2.89,188.18,188.12,8.17518943]
[1755335108381,2.89,188.18,188.12,2.86358943]
[1755335108887,4.21518923,188.17,188.12,2.86358943]
[1755335109091,4.21518923,188.16,188.12,0.03358943]
[1755335109287,2.89,188.14,188.13,2.83]
[1755335109590,2.89,188.16,188.13,5.6673016]
[1755335109782,2.89,188.16,188.14,2.83]
[1755335109983,2.89,188.16,188.15,2.83]
[1755335110186,7.1068009,188.16,188.15,2.83]
[1755335111183,7.1068009,188.16,188.13,5.706318]
[1755335111485,4.39074787,188.2,188.13,5.706318]
[1755335111486,2.89,188.15,188.13,2.876318]
[1755335111688,2.89,188.18,188.13,0.0390164]
[1755335111882,2.89,188.15,188.14,2.83]
[1755335112083,2.89,188.19,188.14,2.83]
[1755335112282,7.10980281,188.18,188.17,2.83]
[1755335112478,4.21980281,188.18,188.17,2.83]
[1755335112688,7.10980281,188.18,188.17,2.83]
[1755335112891,2.89,188.21,188.17,2.83]
[1755335113088,2.89,188.21,188.2,2.83]
[1755335114995,2.89,188.26,188.2,2.83]
[1755335115296,2.89,188.26,188.23,2.83]
[1755335115694,2.89,188.26,188.23,2.86613762]
[1755335116393,2.89,188.27,188.24,2.83]
[1755335116891,2.89,188.27,188.23,0.03613762]
[1755335117096,7.28074787,188.27,188.23,0.03613762]
[1755335117396,2.89,188.25,188.23,0.03613762]
[1755335118091,7.28074787,188.25,188.23,0.03613762]
[1755335118289,7.28074787,188.24,188.23,0.03613762]
[1755335119692,2.89,188.24,188.11,2.8373016]
[1755335119894,7.41792906,188.22,188.12,2.84]
[1755335120097,2.99,188.21,188.12,2.84]
[1755335120594,4.42792906,188.21,188.12,2.84]
[1755335120794,2.99,188.2,188.12,2.84]
[1755335122190,2.99,188.2,188.09,2.84]
[1755335122494,7.41792906,188.17,188.06,2.84]
[1755335122699,2.99,188.15,188.06,2.84]
[1755335123499,2.99,188.15,188.01,4.83356721]
[1755335123500,2.99,188.14,188.01,5.3147]
[1755335123692,4.42792906,188.14,188.02,2.84]
[1755335123891,2.99,188.13,188.02,2.84]
[1755335124092,2.99,188.12,188.02,2.84]
[1755335124688,2.99,188.12,188.03,2.84]
[1755335124896,4.20394625,188.11,188.03,2.84]
[1755335125098,7.19394625,188.1,188.03,2.84]
[1755335125299,2.99,188.1,188.03,2.84]
[1755335125700,2.99,188.1,188.04,5.3138]
[1755335126099,2.99,188.1,188.06,2.84]
[1755335126297,2.99,188.1,188.04,5.3138]
[1755335126298,4.42792906,188.15,188.07,2.84]
[1755335126498,2.99,188.08,188.07,2.84]
[1755335128205,4.42792906,188.15,188.01,4.83356721]
[1755335128206,2.99,188.14,188.04,2.84]
[1755335128409,4.42792906,188.15,188.04,2.84]
[1755335128410,2.99,188.12,188.04,2.84]
[1755335128608,2.99,188.1,188.04,2.84]
[1755335128808,4.20170545,188.09,188.02,5.3142]
[1755335129010,2.99,188.08,188.05,2.84]
[1755335129309,2.99,188.13,188.02,2.84]
[1755335129610,2.99,188.11,188.02,2.84]
[1755335129810,2.99,188.09,188.02,2.84]
[1755335130001,2.99,188.07,188.02,2.84]
[1755335130807,2.99,188.07,187.98,2.84]
[1755335131701,4.1946712,188.06,187.98,2.84]
[1755335131906,2.99,188.07,187.98,2.84]
[1755335132111,2.99,188.05,187.98,2.84]
[1755335133213,2.99,188.05,187.97,2.84]
[1755335135214,2.99,188.05,187.98,2.84]
[1755335135914,4.42288639,188.14,187.98,2.84]
[1755335135915,2.99,188.13,188.01,4.83356721]
[1755335136105,2.99,188.11,188.02,2.84]
[1755335137115,2.99,188.11,188.05,5.3136]
[1755335137316,2.99,188.11,188.06,2.84]
[1755335137517,2.99,188.16,188.06,2.84]
[1755335137718,2.99,188.14,188.06,2.84]
[1755335138020,2.99,188.14,188.07,2.84]
[1755335138213,2.99,188.12,188.07,2.84]
[1755335138420,2.99,188.12,188.08,2.84]
[1755335141019,4.42288639,188.18,188.09,2.84]
[1755335141217,2.99,188.11,188.09,2.84]
[1755335141617,2.99,188.17,188.09,2.84]
[1755335141817,4.18971846,188.16,188.09,2.84]
[1755335142014,7.17971846,188.15,188.09,2.84]
[1755335142217,2.99,188.13,188.09,2.84]
[1755335146130,2.99,188.13,188.05,2.84785832]
[1755335146334,2.99,188.13,188.06,2.84]
[1755335148434,2.99,188.18,188.09,2.84]
[1755335148637,3.01,188.16,188.09,2.84]
[1755335148825,3.01,188.16,188.09,8.1524]
[1755335149030,3.01,188.16,188.1,3.09]
[1755335150435,3.01,188.16,188.08,3.09]
[1755335150637,3.01,188.14,188.08,3.09]
[1755335155232,3.01,188.14,188.09,3.09]
[1755335155431,3.01,188.13,188.09,3.09]
[1755335155630,3.01,188.12,188.09,3.09]
[1755335156124,3.01,188.12,188.08,2.84785832]
[1755335156329,3.01,188.12,188.1,3.09]
[1755335156529,10.28074471,188.18,188.08,3.09]
[1755335156731,3.01,188.16,188.08,3.09]
[1755335157032,3.01,188.14,188.08,3.09]
[1755335157334,3.01,188.12,188.05,3.09]
[1755335157529,2.84785832,188.15,188.03,3.09]
[1755335157530,3.01,188.1,188.03,3.09]
[1755335158135,4.19667683,188.09,188.03,3.09]
[1755335158335,3.01,188.07,188.01,3.09]
[1755335158535,4.19605527,188.06,188.01,3.09]
[1755335158738,3.01,188.05,188.01,3.09]
[1755335158938,3.01,188.05,188.02,3.09]
[1755335159139,3.01,188.05,187.96,357.12]
[1755335159339,3.01,188.05,187.97,3.09]
[1755335161140,7.21429135,188.04,187.97,3.09]
[1755335161342,3.01,188.04,187.97,3.09]
[1755335163142,4.20883547,188.03,187.97,3.09]
[1755335163342,3.01,188.04,187.97,3.09]
[1755335163543,4.20883547,188.03,187.97,3.09]
[1755335163838,3.01,188.04,187.97,3.09]
[1755335164042,7.21883547,188.03,187.97,3.09]
[1755335164245,3.01,188.03,187.97,3.09]
[1755335169648,3.01,188.03,187.97,133.81]
[1755335169853,3.01,188.03,187.98,3.09]
[1755335170648,3.01,188.02,187.98,3.09]
[1755335170849,3.01,188.01,187.98,3.09]
[1755335171350,3.01,188.09,187.99,3.09]
[1755335171644,7.22180103,188.08,188.03,3.09]
[1755335171949,3.01,188.06,188.02,3.09]
[1755335172245,3.01,188.1,188.01,8.4045]
[1755335172549,25.7003626,188.3,188.02,3.09]
[1755335172550,3.01,188.08,188.02,3.09]
[1755335172744,3.01,188.08,188.02,7.92714295]
[1755335172946,3.01,188.08,188.03,3.09]
[1755335173147,3.01,188.11,188.03,3.09]
[1755335173350,3.01,188.09,188.03,3.09]
[1755335173544,3.01,188.07,188.03,3.09]
[1755335173749,4.42288639,188.12,188.02,10.15144295]
[1755335173949,3.01,188.1,188.03,3.09]
[1755335174149,3.01,188.08,188.03,3.09]
[1755335174544,4.21165038,188.07,188.03,3.09]
[1755335174851,3.01,188.08,188.03,3.09]
[1755335175052,3.01,188.06,188.03,3.09]
[1755335175451,3.01,188.06,187.99,3.09]
[1755335176051,4.21102542,188.05,187.99,3.09]
[1755335176248,3.01,188.04,187.99,3.09]
[1755335176448,4.42288639,188.1,187.99,3.09]
[1755335176647,4.21096655,188.09,187.99,3.09]
[1755335176848,3.01,188.02,187.99,3.09]
[1755335177653,3.01,188.08,187.99,3.09]
[1755335177852,3.01,188.06,187.99,3.09]
[1755335178051,3.01,188.05,187.99,3.09]
[1755335180657,3.01,188.05,187.99,5.9394744]
[1755335181852,2.98,188.03,187.97,134.04]
[1755335182455,2.98,188.01,187.95,3.1]
[1755335184957,2.98,188.01,187.94,130.96]
[1755335185160,2.98,188.01,187.94,134.06]
[1755335186557,2.98,187.99,187.94,130.96]
[1755335186754,4.20798793,187.98,187.87,2.8494744]
[1755335186953,2.8494744,188.01,187.88,3.1]
[1755335186954,2.98,187.96,187.88,3.1]
[1755335187158,2.98,187.94,187.88,3.1]
[1755335188159,2.98,188.0,187.9,2.8494744]
[1755335188462,2.98,187.98,187.91,3.1]
[1755335188656,2.98,187.96,187.91,3.1]
[1755335189357,2.98,187.96,187.92,3.1]
[1755335189565,2.98,187.98,187.94,3.1]
[1755335190161,81.79984527,188.02,187.94,3.1]
[1755335190362,2.98,187.97,187.94,3.1]
[1755335191362,2.98,188.04,187.96,2.8494744]
[1755335191668,2.98,188.02,187.98,3.1]
[1755335191863,2.98,188.02,187.99,3.1]
[1755335192064,2.98,188.06,187.97,3.1]
[1755335192266,2.98,188.06,187.95,3.1]
[1755335192267,2.98,188.04,187.95,3.1]
[1755335192567,2.98,188.02,187.95,3.1]
[1755335192763,2.98,188.0,187.92,131.04]
[1755335192967,2.98,187.98,187.93,3.1]
[1755335193862,0.03670714,187.97,187.94,0.03602869]
[1755335194566,2.98,187.95,187.94,3.13602869]
[1755335196669,2.98,187.95,187.94,0.03602869]
[1755335198772,2.98,187.95,187.88,131.16]
[1755335199070,7.19459008,187.94,187.88,131.16]
[1755335199264,2.98,187.93,187.88,134.26]
[1755335199465,8.91195118,188.03,187.88,134.26]
[1755335199466,2.98,187.96,187.89,3.1]
[1755335200263,0.0380525,187.94,187.89,3.1]
[1755335200874,0.0380525,187.94,187.89,8.418]
[1755335201074,3.0180525,187.94,187.9,3.1]
[1755335201267,0.0380525,187.94,187.9,3.1]
[1755335201974,0.0380525,187.94,187.9,5.3176]
[1755335202271,0.0380525,187.94,187.91,3.1]
[1755335202870,0.0380525,187.94,187.91,8.4174]
[1755335203070,0.0380525,187.94,187.92,3.1]
[1755335203270,0.0380525,187.94,187.93,3.1]
[1755335205570,3.0180525,187.94,187.93,3.1]
[1755335205877,2.98,187.93,187.91,3.1]
[1755335206376,2.98,187.93,187.9,131.18]
[1755335206377,2.98,187.93,187.92,3.1]
[1755335206869,0.0380525,187.94,187.93,3.1]
[1755335207280,2.98,187.98,187.93,5.3166]
[1755335207474,2.98,187.97,187.94,3.1]
[1755335207870,2.98,187.97,187.95,3.1]
[1755335208773,4.42288639,188.05,187.95,3.1]
[1755335208979,3.04,188.03,187.95,3.1]
[1755335209176,3.04,188.01,187.95,3.1]
[1755335209375,3.04,187.98,187.96,3.02]
[1755335209678,7.46288639,188.04,187.96,3.02]
[1755335209877,3.04,188.02,187.96,3.02]
[1755335210082,3.04,188.0,187.96,3.02]
[1755335210479,5.94130078,188.07,187.91,4.84046893]
[1755335210480,3.04,187.99,187.97,3.02]
[1755335210678,3.04,187.98,187.97,3.02]
[1755335211270,3.04,187.99,187.98,3.02]
[1755335211677,3.04,187.99,187.91,4.84046893]
[1755335211877,4.42288639,188.05,187.92,5.3172]
[1755335212083,3.04,188.03,187.94,3.02]
[1755335212279,3.04,188.01,187.94,3.02]
[1755335212575,3.04,187.99,187.91,10.15766893]
[1755335212779,3.04,187.99,187.96,3.02]
[1755335213280,3.04,187.98,187.96,3.02]
[1755335213475,3.04,187.98,187.91,4.84046893]
[1755335213682,3.04,187.98,187.97,3.02]
[1755335214381,3.04,188.0,187.97,3.02]
[1755335214581,3.04,187.99,187.98,3.02]
[1755335214780,3.04,187.99,187.92,3.02]
[1755335216783,3.04,187.99,187.92,5.87179848]
[1755335216984,3.04,187.99,187.93,3.02]
[1755335217184,3.04,187.97,187.94,3.02]
[1755335218992,3.04,188.02,187.93,3.02]
[1755335219191,4.22412818,188.01,187.93,3.02]
[1755335219392,3.04,187.99,187.93,3.02]
[1755335219591,3.04,187.99,187.92,2.85179848]
[1755335219592,4.22412818,187.98,187.92,2.85179848]
[1755335219792,3.04,187.96,187.94,3.02]
[1755335219994,3.04,187.95,187.94,3.02]
[1755335220393,3.04,187.96,187.95,3.02]
[1755335222196,3.04,187.96,187.93,3.02]
[1755335222389,3.04,187.95,187.94,3.02]
[1755335222789,4.42288639,188.01,187.92,2.85179848]
[1755335222790,3.04,188.0,187.93,3.02]
[1755335222990,3.04,187.98,187.93,3.02]
[1755335223291,3.04,187.96,187.93,3.02]
[1755335223486,3.04,187.95,187.94,3.02]
[1755335224297,3.04,188.0,187.94,3.02]
[1755335224594,4.42288639,188.01,187.94,3.02]
[1755335224595,3.04,187.97,187.94,3.02]
[1755335224795,3.04,187.96,187.95,3.02]
[1755335225392,3.04,188.0,187.94,3.02]
[1755335225687,4.233094,187.99,187.94,3.02]
[1755335225886,3.04,187.97,187.94,3.02]
[1755335226092,3.04,187.99,187.96,2.85179848]
[1755335226294,4.23461688,187.98,187.97,3.02]
[1755335226898,7.27461688,187.98,187.97,3.02]
[1755335227598,4.42288639,188.03,187.97,3.02]
[1755335227798,3.04,187.99,187.98,3.02]